Workbook

Sheet Sheet1
A1: 贵阳市国防动员办公室2024年公开招聘事业单位工作人员面试成绩、总成绩及进入体检环节人员名单
A2: （须组织专业测试的B类岗位）
A3: 序号 | B3: 姓名 | C3: 准考证号 | D3: 单位及代码 | E3: 报考岗位 及代码 | F3: 笔试成绩 | G3: 笔试成绩（百分制） | H3: 笔试成绩30% | I3: 专业测试成绩 | J3: 专业测试成绩40% | K3: 面试成绩 | L3: 面试成绩30% | M3: 笔试、专业测试、面试总成绩 | N3: 综合排名 | O3: 是否进入体检
A4: 1 | B4: 苏铜军 | C4: 1152019400320 | D4: 贵阳市人防工程管理服务中心 201010069 | E4: B类岗位20101006901 | F4: 192 | G4: =ROUND(F4/3,2) -> 64.00 | H4: =ROUND(G4*0.3,2) -> 19.20 | I4: 66 | J4: =ROUND(I4*0.4,2) -> 26.40 | K4: 80.8 | L4: =ROUND(K4*0.3,2) -> 24.24 | M4: =J4+H4+L4 -> 69.84 | N4: 1 | O4: 是
A5: 2 | B5: 马小阳 | C5: 1152019402120 | D5: 贵阳市人防工程管理服务中心 201010069 | E5: B类岗位20101006901 | F5: 175 | G5: =ROUND(F5/3,2) -> 58.33 | H5: =ROUND(G5*0.3,2) -> 17.50 | I5: 60 | J5: =ROUND(I5*0.4,2) -> 24.00 | K5: 77 | L5: =ROUND(K5*0.3,2) -> 23.10 | M5: =J5+H5+L5 -> 64.6 | N5: 2
A6: 3 | B6: 李强 | C6: 1152019400426 | D6: 贵阳市人防工程管理服务中心 201010069 | E6: B类岗位20101006901 | F6: 167 | G6: =ROUND(F6/3,2) -> 55.67 | H6: =ROUND(G6*0.3,2) -> 16.70 | I6: 64 | J6: =ROUND(I6*0.4,2) -> 25.60 | K6: 73.8 | L6: =ROUND(K6*0.3,2) -> 22.14 | M6: =J6+H6+L6 -> 64.44 | N6: 3
A7: （A类岗位）
A8: 序号 | B8: 姓名 | C8: 准考证号 | D8: 单位及代码 | E8: 报考岗位 及代码 | F8: 笔试成绩 | G8: 笔试成绩（百分制） | H8: 笔试成绩60% | I8: 面试成绩 | J8: 面试成绩40% | K8: 笔试、面试 总成绩 | L8: 综合排名 | M8: 是否进入体检
A9: 1 | B9: 杨红萍 | C9: 1152014602108 | D9: 贵阳市人民防空指挥信息保障中心 201010068 | E9: A类岗位20101006801 | F9: 209 | G9: =ROUND(F9/3,2) -> 69.67 | H9: =ROUND(G9*0.6,2) -> 41.80 | I9: 82.2 | J9: =ROUND(I9*0.4,2) -> 32.88 | K9: =J9+H9 -> 74.68 | L9: 1 | M9: 是
A10: 2 | B10: 黄萍 | C10: 1152014602507 | D10: 贵阳市人民防空指挥信息保障中心 201010068 | E10: A类岗位20101006801 | F10: 189.5 | G10: =ROUND(F10/3,2) -> 63.17 | H10: =ROUND(G10*0.6,2) -> 37.90 | I10: 81.8 | J10: =ROUND(I10*0.4,2) -> 32.72 | K10: =J10+H10 -> 70.62 | L10: 2
A11: 3 | B11: 杨霖 | C11: 1152014600122 | D11: 贵阳市人民防空指挥信息保障中心 201010068 | E11: A类岗位20101006801 | F11: 192.5 | G11: =ROUND(F11/3,2) -> 64.17 | H11: =ROUND(G11*0.6,2) -> 38.50 | I11: 77.4 | J11: =ROUND(I11*0.4,2) -> 30.96 | K11: =J11+H11 -> 69.46 | L11: 3
